bitfinex/quotes_SOLUSD_20250624
["timestamp","ask_amount","ask_price","bid_price","bid_amount"]
[1750806829173,8.03729287,144.9,144.86,88.7]
[1750806829461,5.62183394,144.87,144.83,94.32183394]
[1750806831165,0.69027403,144.87,144.83,94.32183394]
[1750806831962,0.69017875,144.89,144.86,5.62183394]
[1750806832266,0.69017875,144.89,144.87,5.62183394]
[1750806833476,0.69013112,144.9,144.88,5.62183394]
[1750806834465,0.69013112,144.9,144.87,5.62183394]
[1750806834953,6.31196506,144.9,144.86,5.62183394]
[1750806835846,6.31196506,144.9,144.85,5.62183394]
[1750806839991,0.69013112,144.9,144.87,5.62183394]
[1750806842586,0.69013112,144.9,144.87,94.32183394]
[1750806844767,5.84779291,144.9,144.87,94.32183394]
[1750806845588,0.69013112,144.9,144.87,94.32183394]
[1750806845890,0.69013112,144.9,144.87,88.7]
[1750806846992,0.69013112,144.9,144.87,94.32183394]
[1750806848575,0.69013112,144.9,144.87,88.7]
[1750806852476,5.16701039,144.89,144.87,88.7]
[1750806852796,6.31196506,144.9,144.87,88.7]
[1750806853110,5.1670093,144.89,144.87,88.7]
[1750806853402,0.69013112,144.9,144.87,88.7]
[1750806853577,5.16732416,144.89,144.87,88.7]
[1750806853777,0.69013112,144.9,144.87,88.7]
[1750806854109,5.16916979,144.89,144.87,94.32183394]
[1750806854275,0.69013112,144.9,144.87,92.29236166]
[1750806855377,5.16911545,144.89,144.87,92.29236166]
[1750806855582,0.69013112,144.9,144.87,92.29236166]
[1750806855883,5.1690625,144.89,144.87,92.29236166]
[1750806856182,0.69013112,144.9,144.87,92.29236166]
[1750806857504,5.16973473,144.89,144.87,92.29236166]
[1750806857706,6.79009828,144.91,144.87,92.29236166]
[1750806857897,5.8598796,144.9,144.87,92.29236166]
[1750806858199,5.16973433,144.89,144.87,88.7]
[1750806858403,4.28250693,144.9,144.87,88.7]
[1750806860111,5.85995637,144.89,144.87,88.7]
[1750806860407,0.69020292,144.89,144.87,88.7]
[1750806861504,0.69013112,144.9,144.87,88.7]
[1750806866323,0.69013112,144.9,144.86,92.29236166]
[1750806868333,0.69013112,144.9,144.87,3.59236166]
[1750806869610,0.69013112,144.9,144.86,88.7]
[1750806869805,0.69013112,144.9,144.86,92.29236166]
[1750806871212,0.69013112,144.9,144.87,3.59236166]
[1750806871928,6.79010613,144.91,144.88,3.59236166]
[1750806872425,6.79010613,144.91,144.88,88.7]
[1750806874432,6.79010613,144.91,144.88,92.29236166]
[1750806875533,6.79010613,144.91,144.88,3.59236166]
[1750806877462,6.1,144.91,144.88,3.59236166]
[1750806878154,6.1,144.91,144.87,6.902627]
[1750806878155,6.1,144.91,144.89,3.59236166]
[1750806878761,6.79009764,144.91,144.85,25.55294667]
[1750806879065,0.69017875,144.89,144.85,92.29236166]
[1750806880849,3.59236166,144.88,144.85,88.7]
[1750806881053,0.69032168,144.86,144.83,88.7]
[1750806881456,4.28268334,144.86,144.83,88.7]
[1750806883466,0.69032168,144.86,144.83,88.7]
[1750806884273,6.30709174,144.87,144.83,88.7]
[1750806886277,0.69029547,144.87,144.83,101.22142871]
[1750806886454,0.69029547,144.87,144.83,94.31679627]
[1750806886778,6.30709174,144.87,144.83,94.31679627]
[1750806887571,5.61679627,144.86,144.83,88.7]
[1750806887967,5.61679627,144.85,144.83,88.7]
[1750806888165,5.61679627,144.85,144.8,5.61679627]
[1750806889572,0.69041701,144.84,144.8,5.61679627]
[1750806891774,0.69041701,144.84,144.8,12.52273731]
[1750806892385,6.73039138,144.85,144.81,5.61679627]
[1750806892604,6.04,144.85,144.82,5.61679627]
[1750806893982,6.04,144.85,144.82,12.52161083]
[1750806895862,6.04,144.85,144.81,6.90560044]
[1750806896060,6.04,144.85,144.82,5.61679627]
[1750806897382,6.04,144.85,144.82,12.52178684]
[1750806898787,6.04,144.85,144.82,101.22178684]
[1750806900792,6.04,144.85,144.82,88.7]
[1750806900994,6.04,144.85,144.82,95.60509691]
[1750806901175,6.04,144.85,144.82,101.22189318]
[1750806902191,6.04,144.85,144.82,94.31679627]
[1750806903489,6.04,144.85,144.82,101.22188455]
[1750806903894,6.04,144.85,144.82,94.31679627]
[1750806904081,6.73037707,144.85,144.82,88.7]
[1750806904778,6.73037707,144.85,144.81,88.7]
[1750806904779,10.32573144,144.85,144.81,88.7]
[1750806905292,6.73037707,144.85,144.81,92.29535437]
[1750806905587,3.59535437,144.82,144.74,88.7]
[1750806905789,3.59535437,144.81,144.76,3.59535437]
[1750806906166,3.59535437,144.8,144.75,3.59535437]
[1750806906594,3.59535437,144.8,144.76,3.59535437]
[1750806907372,4.28596612,144.8,144.76,3.59535437]
[1750806907575,5.17745437,144.81,144.76,10.50310762]
[1750806907786,10.07935437,144.82,144.78,3.59535437]
[1750806908265,12.10443289,144.82,144.78,5.62043289]
[1750806908463,0.69052433,144.82,144.79,5.62043289]
[1750806909790,0.69052433,144.82,144.78,5.62043289]
[1750806912891,5.62043289,144.81,144.76,5.62043289]
[1750806913191,5.62043289,144.8,144.75,5.62043289]
[1750806915004,6.3110846,144.8,144.76,5.62043289]
[1750806915198,6.3110846,144.8,144.73,32.90941753]
[1750806915373,5.62043289,144.79,144.75,5.62043289]
[1750806916182,0.69070313,144.78,144.75,5.62043289]
[1750806918575,0.69067819,144.79,144.75,5.62043289]
[1750806918776,5.62043289,144.8,144.75,5.62043289]
[1750806920294,5.62043289,144.8,144.74,6.90891611]
[1750806920295,0.69067819,144.79,144.74,6.90891611]
[1750806920492,0.69067819,144.79,144.75,5.62043289]
[1750806921200,0.69067819,144.79,144.74,6.90891611]
[1750806921387,0.69067819,144.79,144.75,5.62043289]
[1750806922100,0.69067819,144.79,144.76,5.62043289]
[1750806923397,0.69067819,144.79,144.74,6.90891611]
[1750806923600,0.69067819,144.79,144.75,5.62043289]
[1750806924102,0.69067819,144.79,144.74,6.90891611]
[1750806924298,0.69067819,144.79,144.76,5.62043289]
[1750806924506,0.69062987,144.8,144.76,5.62043289]
[1750806925101,6.31106276,144.8,144.76,5.62043289]
[1750806927210,6.31106276,144.8,144.74,6.90866272]
[1750806927384,6.31106276,144.8,144.75,5.62043289]
[1750806927586,6.31106276,144.8,144.76,5.62043289]
[1750806927916,6.31106276,144.8,144.74,6.90866272]
[1750806928091,6.31106276,144.8,144.75,5.62043289]
[1750806928290,3.59838636,144.8,144.75,92.29838636]
[1750806928692,3.59838636,144.81,144.76,3.59838636]
[1750806929305,2.41679326,144.82,144.76,3.59838636]
[1750806929506,3.59838636,144.81,144.76,3.59838636]
[1750806930412,5.13832469,144.83,144.78,3.59838636]
[1750806930589,3.59838636,144.83,144.78,3.59838636]
[1750806931098,3.59838636,144.83,144.76,6.90785487]
[1750806931300,3.59838636,144.83,144.79,3.59838636]
[1750806931698,0.69048475,144.83,144.8,3.59838636]
[1750806932210,0.69048475,144.83,144.76,6.90798563]
[1750806932385,0.69048475,144.83,144.8,5.61903837]
[1750806934708,0.69048475,144.83,144.79,5.61903837]
[1750806936113,6.30952312,144.83,144.79,5.61903837]
[1750806937328,6.30952312,144.83,144.79,94.31903837]
[1750806937617,0.69048475,144.83,144.79,94.31903837]
[1750806938107,0.69048475,144.83,144.81,5.61903837]
[1750806938310,0.69048475,144.83,144.81,94.31903837]
[1750806938517,0.69043806,144.84,144.81,94.31903837]
[1750806941223,13.21763837,144.85,144.81,94.31903837]
[1750806941396,6.73037772,144.85,144.82,5.61903837]
[1750806942301,6.04,144.85,144.83,5.61903837]
[1750806942511,6.7303806,144.85,144.83,5.61903837]
[1750806942901,6.04,144.85,144.84,5.61903837]
[1750806943101,6.04,144.85,144.84,94.31903837]
[1750806943319,5.82857183,144.88,144.84,94.31903837]
[1750806943496,13.48832493,144.89,144.85,5.61903837]
[1750806943815,6.06,144.89,144.87,5.61903837]
[1750806944006,6.06,144.89,144.87,94.31903837]
[1750806944519,6.06,144.89,144.87,88.7]
[1750806945221,6.75017991,144.89,144.87,88.7]
[1750806949115,6.75017991,144.89,144.86,94.31903837]
[1750806956127,6.75017991,144.89,144.87,5.61903837]
[1750806957025,6.06,144.89,144.88,5.61903837]
[1750806958010,6.75017875,144.89,144.88,5.61903837]
[1750806958410,6.75017875,144.89,144.87,94.31903837]
[1750806959846,6.75017875,144.89,144.87,88.7]
[1750806960230,10.3437104,144.89,144.87,88.7]
[1750806961033,10.3437104,144.89,144.85,92.29353165]
[1750806961234,6.75017875,144.89,144.85,92.29353165]
[1750806962133,8.47562564,144.89,144.85,92.29353165]
[1750806962341,8.47562564,144.89,144.85,94.31478613]
[1750806963431,8.47562564,144.89,144.86,5.61478613]
[1750806964328,6.75017875,144.89,144.86,5.61478613]
[1750806966451,6.75017875,144.89,144.87,5.61478613]
[1750806966838,6.06,144.89,144.88,5.61478613]
[1750806970241,6.3287,144.94,144.88,5.61478613]
[1750806970242,6.06,144.94,144.88,5.61478613]
[1750806970447,6.06,144.94,144.91,5.61478613]
[1750806970760,6.06,144.94,144.9,5.61478613]
[1750806971042,6.74994066,144.94,144.9,5.61478613]
[1750806971246,5.61478613,144.93,144.89,5.61478613]
[1750806972643,8.47479232,144.94,144.89,5.61478613]
[1750806972846,14.08957845,144.94,144.89,5.61478613]
[1750806973350,14.08957845,144.94,144.9,5.61478613]
[1750806974133,14.08957845,144.94,144.89,5.61478613]
[1750806975138,8.47479232,144.94,144.89,5.61478613]
[1750806975332,14.08957845,144.94,144.9,5.61478613]
[1750806975654,14.08957845,144.94,144.9,94.31478613]
[1750806976438,8.47479232,144.94,144.9,94.31478613]
[1750806980655,14.08957845,144.94,144.9,94.31478613]
[1750806980860,14.08957845,144.94,144.9,88.7]
[1750806981934,5.61478613,144.93,144.9,88.7]
[1750806982550,10.75413829,144.93,144.9,88.7]
[1750806984562,0.69003588,144.92,144.9,88.7]
[1750806984964,5.61478613,144.91,144.86,5.61478613]
[1750806985265,10.77032106,144.91,144.86,5.61478613]
[1750806985471,5.15590111,144.9,144.86,5.61478613]
[1750806985768,5.61478613,144.91,144.86,5.61478613]
[1750806985953,5.15749045,144.9,144.86,5.61478613]
[1750806986149,0.69017875,144.89,144.86,5.61478613]
[1750806989668,0.69017875,144.89,144.85,94.31478613]
[1750806990358,0.69017875,144.89,144.85,92.29314223]
[1750806991755,0.69017875,144.89,144.86,3.59314223]
[1750806992170,4.28332098,144.89,144.86,88.7]
[1750806994660,5.16272527,144.88,144.86,88.7]
[1750806994862,4.28332098,144.89,144.86,88.7]
[1750806995071,8.75590644,144.88,144.86,88.7]
[1750806995255,0.69027403,144.87,144.86,88.7]
[1750806995870,4.28341626,144.87,144.86,88.7]
[1750806996457,4.28341626,144.87,144.83,92.29314223]
[1750806997397,9.44507206,144.87,144.83,92.29314223]
[1750806997672,9.44507206,144.87,144.83,88.7]
[1750806998062,4.28341626,144.87,144.83,88.7]
[1750806998267,5.61683098,144.86,144.83,88.7]
[1750806998464,5.61683098,144.86,144.82,5.61683098]
[1750806999186,11.46787688,144.87,144.82,5.61683098]
[1750806999467,6.30710501,144.87,144.82,5.61683098]
[1750807000680,6.75024954,144.88,144.85,5.61683098]
[1750807001572,6.75024954,144.88,144.84,5.61683098]
[1750807002473,6.75024954,144.88,144.82,6.90508367]
[1750807002675,6.75024954,144.88,144.84,5.61683098]
[1750807002867,12.36708052,144.88,144.84,5.61683098]
[1750807003484,12.36708052,144.88,144.82,6.90486541]
[1750807003690,12.36708052,144.88,144.84,5.61683098]
[1750807004981,12.36708052,144.88,144.83,5.61683098]
[1750807005291,5.61683098,144.87,144.82,5.61683098]
[1750807006084,0.69032168,144.86,144.82,5.61683098]
[1750807006266,0.6902949,144.87,144.83,5.61683098]
[1750807008157,0.6902949,144.87,144.83,94.31683098]
[1750807010256,0.6902949,144.87,144.84,5.61683098]
[1750807010768,12.36708041,144.88,144.84,5.61683098]
[1750807011775,6.06,144.88,144.86,5.61683098]
[1750807011963,6.06,144.88,144.87,5.61683098]
[1750807013283,6.06,144.88,144.86,5.61683098]
[1750807014482,6.06,144.88,144.84,95.60411549]
[1750807014694,6.06,144.88,144.86,5.61683098]
[1750807015682,6.06,144.88,144.87,5.61683098]
[1750807017192,6.06,144.88,144.87,94.31683098]
[1750807018367,6.06,144.88,144.87,92.29257669]
[1750807023888,5.15559143,144.9,144.87,88.7]
[1750807024079,0.69008494,144.91,144.89,3.59257669]
[1750807024285,0.69008494,144.91,144.89,92.29257669]
[1750807024990,0.69008494,144.91,144.89,88.7]
[1750807026290,0.69008494,144.91,144.89,92.29257669]
[1750807026484,5.15915384,144.92,144.89,92.29257669]
[1750807026485,0.6900521,144.92,144.89,92.29257669]
[1750807026686,6.73000677,144.93,144.9,3.59257669]
[1750807027687,6.73000677,144.93,144.91,3.59257669]
[1750807029390,6.73000677,144.93,144.9,92.29257669]
[1750807032600,6.04,144.93,144.91,3.59257669]
[1750807032898,5.15501728,144.96,144.92,3.59257669]
[1750807033089,5.15501728,144.97,144.94,3.59257669]
[1750807033292,5.15501728,144.96,144.94,3.59257669]
[1750807033485,5.15501728,144.97,144.94,3.59257669]
[1750807033801,6.04,144.98,144.95,3.59257669]
[1750807034300,11.19188152,144.98,144.95,5.60685294]
[1750807034477,6.04,144.98,144.95,5.60685294]
[1750807034674,11.88165437,144.98,144.95,5.60685294]
[1750807034879,11.88165437,144.98,144.93,6.89978627]
[1750807034880,5.84160352,144.99,144.97,5.60685294]
[1750807035409,0.689722,144.99,144.96,5.60685294]
[1750807039687,0.689722,144.99,144.95,5.60685294]
[1750807040382,5.60685294,144.98,144.94,5.60685294]
[1750807040804,5.60685294,144.98,144.94,94.30685294]
[1750807041798,0.68979788,144.97,144.94,94.30685294]
[1750807043712,0.68975031,144.98,144.94,94.30685294]
[1750807045711,5.60685294,144.98,144.94,94.30685294]
[1750807048020,0.68979788,144.97,144.94,94.30685294]
[1750807048514,6.29665082,144.97,144.94,88.7]
[1750807050517,5.60685294,144.96,144.94,88.7]
[1750807050712,6.29665082,144.97,144.94,88.7]
[1750807051097,32.29665082,144.97,144.94,88.7]
[1750807052599,0.68979788,144.97,144.94,88.7]
[1750807052897,0.68979788,144.97,144.94,94.30685294]
[1750807055615,0.68975031,144.98,144.95,5.60685294]
[1750807057452,0.68975031,144.98,144.96,5.60685294]
[1750807057630,0.68970273,144.99,144.96,5.60685294]
[1750807058747,0.68970273,144.99,144.95,94.30685294]
[1750807060524,5.82485038,144.99,144.95,94.30685294]
[1750807060824,0.68970273,144.99,144.96,5.60685294]
[1750807062212,6.72966908,145.0,144.97,5.60685294]
[1750807063105,6.04,145.0,144.98,5.60685294]
[1750807063429,6.04,145.0,144.99,5.60685294]
[1750807064235,6.72965517,145.0,144.98,94.30685294]
[1750807066433,6.72965517,145.0,144.98,5.60685294]
[1750807066733,11.86480282,145.0,144.98,5.60685294]
[1750807067032,6.72965517,145.0,144.98,5.60685294]
[1750807067215,5.60685294,144.99,144.95,5.60685294]
[1750807067423,10.74200059,144.99,144.95,5.60685294]
[1750807068229,5.13514765,144.98,144.95,5.60685294]
[1750807068434,0.68979788,144.97,144.95,5.60685294]
[1750807069912,0.68979788,144.97,144.94,5.60685294]
[1750807070436,0.68975031,144.98,144.94,5.60685294]
[1750807073314,5.15736922,144.97,144.94,94.30685294]
[1750807073516,0.68975031,144.98,144.94,94.30685294]
[1750807073816,5.15835175,144.97,144.94,94.30685294]
[1750807074017,0.68975031,144.98,144.94,94.30685294]
[1750807074229,5.15837634,144.97,144.94,94.30685294]
[1750807074433,6.29660325,144.98,144.94,94.30685294]
[1750807074741,5.15942158,144.97,144.94,94.30685294]
[1750807074936,6.29660325,144.98,144.94,94.30685294]
[1750807075134,5.15942158,144.97,144.94,94.30685294]
[1750807075447,5.84929428,144.96,144.94,88.7]
[1750807075623,6.29672564,144.96,144.94,88.7]
[1750807075938,10.76795513,144.95,144.94,88.7]
[1750807077237,11.45784819,144.95,144.94,88.7]
[1750807077629,5.85099525,144.95,144.94,88.7]
[1750807077940,11.45784819,144.95,144.94,88.7]
[1750807079356,13.18258085,144.95,144.89,5.60685294]
[1750807079521,5.60685294,144.93,144.89,5.60685294]
[1750807080448,0.69003588,144.92,144.89,5.60685294]
[1750807080947,10.76924531,144.91,144.87,7.27055294]
[1750807081125,5.60685294,144.91,144.87,7.27055294]
[1750807081927,6.29688882,144.92,144.87,14.17326284]
[1750807082251,6.29688882,144.92,144.88,5.60685294]
[1750807082620,6.29688882,144.92,144.87,1.6637]
[1750807082816,10.76503324,144.91,144.87,7.27055294]
[1750807083018,10.76503324,144.91,144.87,5.60685294]
[1750807083647,5.60685294,144.91,144.87,5.60685294]
[1750807084364,0.69013112,144.9,144.87,5.60685294]
[1750807085855,0.69010206,144.91,144.87,5.60685294]
[1750807086028,0.69004738,144.92,144.89,5.60685294]
[1750807086745,0.69004738,144.92,144.9,5.60685294]
[1750807087950,0.68998827,144.93,144.9,5.60685294]
[1750807092760,0.68998827,144.93,144.91,5.60685294]
[1750807093362,0.68998827,144.93,144.9,5.60685294]
[1750807093947,0.68998827,144.93,144.91,5.60685294]
[1750807095154,0.68998827,144.93,144.88,95.60205537]
[1750807095355,0.68998827,144.93,144.89,5.60685294]
[1750807096062,6.29684121,144.93,144.88,94.30685294]
[1750807096361,6.29684121,144.93,144.89,5.60685294]
[1750807096752,6.29684121,144.93,144.88,94.30685294]
[1750807097365,6.29684121,144.93,144.89,5.60685294]
[1750807098060,0.68998827,144.93,144.9,5.60685294]
[1750807098357,0.68998827,144.93,144.91,5.60685294]
[1750807098656,6.04,144.94,144.91,5.60685294]
[1750807098860,6.04,144.94,144.92,5.60685294]
[1750807099166,6.04,144.94,144.92,94.30685294]
[1750807102965,6.04,144.94,144.93,5.60685294]
[1750807104660,6.04,144.94,144.93,94.30685294]
[1750807104842,0.68981335,144.97,144.93,101.2066701]
[1750807105049,5.83715361,144.98,144.95,5.60685294]
[1750807106668,11.44400655,144.98,144.93,237.6]
[1750807106866,11.44400655,144.98,144.94,5.60685294]
[1750807107081,6.29664236,144.98,144.94,5.60685294]
[1750807107483,11.44400655,144.98,144.94,5.60685294]
[1750807107770,5.60685294,144.96,144.93,237.6]
[1750807108653,0.68989306,144.95,144.93,88.7]
[1750807110024,0.68984547,144.96,144.93,88.7]
[1750807110271,0.68984547,144.96,144.93,94.30685294]
[1750807111661,5.8371802,144.97,144.95,5.60685294]
[1750807111867,0.68981601,144.97,144.95,5.60685294]
[1750807112070,5.8371802,144.97,144.95,5.60685294]
[1750807112364,0.68981601,144.97,144.95,5.60685294]
[1750807112575,5.8371802,144.97,144.95,5.60685294]
[1750807112756,0.68981601,144.97,144.95,5.60685294]
[1750807112959,5.8371802,144.97,144.95,5.60685294]
[1750807113158,0.68981601,144.97,144.95,5.60685294]
[1750807113359,5.8371802,144.97,144.95,5.60685294]
[1750807113562,0.68981601,144.97,144.95,5.60685294]
[1750807113769,5.8371802,144.97,144.95,5.60685294]
[1750807113973,0.68981601,144.97,144.93,95.59980928]
[1750807114172,5.8371802,144.97,144.95,5.60685294]
[1750807114361,0.68981601,144.97,144.95,5.60685294]
[1750807114560,5.14736419,144.97,144.95,94.30685294]
[1750807115487,10.75421713,144.97,144.95,88.7]
[1750807116575,5.60685294,144.97,144.95,88.7]
[1750807116775,0.68984547,144.96,144.95,88.7]
[1750807118493,7.33122871,144.98,144.95,88.7]
[1750807118494,5.84487675,144.97,144.95,88.7]
[1750807118665,0.68979788,144.97,144.95,88.7]
[1750807119777,5.8449389,144.97,144.95,88.7]
[1750807120496,5.15514102,144.97,144.95,88.7]
[1750807126285,5.15514102,144.97,144.95,94.30685294]
[1750807127811,5.84494871,144.97,144.95,94.30685294]
[1750807128110,0.68980769,144.97,144.95,94.30685294]
[1750807128274,5.84494871,144.97,144.95,94.30685294]
[1750807128475,0.68980769,144.97,144.95,94.30685294]
[1750807129125,0.68975031,144.98,144.95,94.30685294]
[1750807129307,5.155494,144.97,144.95,88.7]
[1750807129503,6.29660325,144.98,144.95,88.7]
[1750807129799,5.15630958,144.97,144.95,88.7]
[1750807129998,5.60685294,144.97,144.95,88.7]
[1750807130395,5.15641405,144.96,144.95,88.7]
[1750807130988,5.84625952,144.96,144.95,88.7]
[1750807139627,11.45311246,144.96,144.95,88.7]
[1750807139820,11.45311246,144.96,144.91,88.7]
[1750807140034,5.60685294,144.93,144.87,96.5041]
[1750807140331,5.60685294,144.93,144.88,5.60685294]
[1750807140623,5.60685294,144.93,144.89,5.60685294]
[1750807140918,0.6900835,144.91,144.87,7.19135294]
[1750807141225,6.29693644,144.91,144.87,7.19135294]
[1750807143324,0.6900835,144.91,144.83,96.5532]
[1750807143623,5.60685294,144.89,144.85,5.60685294]
[1750807143804,5.16326497,144.88,144.85,5.60685294]
[1750807144004,5.60685294,144.89,144.85,5.60685294]
[1750807144224,5.60685294,144.89,144.84,5.60685294]
[1750807144405,2.41529225,144.91,144.82,5.60685294]
[1750807144406,5.60685294,144.87,144.82,5.60685294]
[1750807144814,5.60685294,144.86,144.81,5.60685294]
[1750807145402,0.69036934,144.85,144.81,5.60685294]
[1750807145726,0.69036934,144.85,144.82,5.60685294]
[1750807146230,6.29722228,144.85,144.8,88.7]
[1750807146403,6.29722228,144.85,144.8,94.30685294]
[1750807146599,5.60685294,144.84,144.79,7.24045294]
[1750807146907,5.60685294,144.84,144.8,5.60685294]
[1750807147314,0.69051236,144.82,144.78,88.7]
[1750807147514,0.69051236,144.82,144.78,5.60685294]
[1750807147714,6.2973653,144.82,144.77,5.60685294]
[1750807147925,6.2973653,144.82,144.74,5.60685294]
[1750807147926,5.60685294,144.79,144.74,5.60685294]
[1750807148229,7.6776,144.81,144.74,5.60685294]
[1750807148431,5.60685294,144.8,144.75,5.60685294]
[1750807149333,6.29750837,144.79,144.72,6.3781]
[1750807149631,5.60685294,144.78,144.74,5.60685294]
[1750807150018,6.29750837,144.79,144.74,5.60685294]
[1750807151031,6.29750837,144.79,144.75,5.60685294]
[1750807152332,6.29750837,144.79,144.74,5.60685294]
[1750807153125,6.29750837,144.79,144.74,94.30685294]
[1750807154438,0.69065543,144.79,144.76,5.60685294]
[1750807155422,0.69065543,144.79,144.75,5.60685294]
[1750807155613,0.69061687,144.8,144.77,5.60685294]
[1750807155946,32.7105768,144.81,144.78,5.60685294]
[1750807156734,6.02,144.81,144.8,5.60685294]
[1750807160345,6.02,144.81,144.76,25.55763449]
[1750807160654,6.02,144.81,144.79,5.60685294]
[1750807161660,6.02,144.81,144.78,5.60685294]
[1750807161952,6.71057093,144.81,144.78,5.60685294]
[1750807163365,7.9616,144.88,144.8,11.21370588]
[1750807163525,11.62685294,144.89,144.85,5.60685294]
[1750807163726,37.62685294,144.89,144.85,5.60685294]
[1750807163926,37.62685294,144.89,144.84,5.60685294]
[1750807164426,0.69022639,144.88,144.84,5.60685294]
[1750807168530,6.29707933,144.88,144.83,5.60685294]
[1750807170751,0.69032168,144.86,144.83,5.60685294]
[1750807170954,6.29717462,144.86,144.83,88.7]
[1750807172454,5.60685294,144.87,144.83,88.7]
[1750807172763,6.29707933,144.88,144.83,94.30685294]
[1750807174045,0.69022639,144.88,144.83,94.30685294]
[1750807174241,6.29707933,144.88,144.83,101.21132002]
[1750807174459,6.29707933,144.88,144.83,94.30685294]
[1750807174663,6.29707933,144.88,144.84,5.60685294]
[1750807175946,0.69022639,144.88,144.84,5.60685294]
[1750807176740,0.69022639,144.88,144.84,94.30685294]
[1750807176947,6.29707933,144.88,144.84,88.7]
[1750807179663,0.69022639,144.88,144.84,88.7]
[1750807179862,6.29707933,144.88,144.84,88.7]
[1750807180259,0.69022639,144.88,144.84,88.7]
[1750807180580,0.69022639,144.88,144.84,94.30685294]
[1750807181467,32.71019683,144.89,144.84,94.30685294]
[1750807181661,6.02,144.89,144.86,5.60685294]
[1750807182062,6.02,144.89,144.87,5.60685294]
[1750807182585,6.02,144.89,144.86,5.60685294]
[1750807182750,6.71019001,144.89,144.87,5.60685294]
[1750807184879,6.02,144.89,144.88,5.60685294]
[1750807188772,6.02,144.89,144.87,5.60685294]
[1750807190574,6.71018432,144.89,144.84,8.1642]
[1750807190784,6.71018432,144.89,144.85,5.60685294]
[1750807191272,6.71018432,144.89,144.84,258.27514462]
[1750807191479,6.71018432,144.89,144.85,5.60685294]
[1750807194490,6.71018432,144.89,144.85,94.30685294]
[1750807199288,6.71018432,144.89,144.86,5.60685294]
[1750807200483,6.71018432,144.89,144.86,94.30685294]
[1750807200680,6.71018432,144.89,144.87,5.60685294]
[1750807200883,6.02,144.89,144.87,94.30685294]
[1750807202975,6.02,144.89,144.88,5.60685294]
[1750807205790,6.02,144.89,144.87,94.30685294]
[1750807206092,6.71017875,144.89,144.87,94.30685294]
[1750807206504,6.71017875,144.89,144.87,88.7]
[1750807207678,6.02,144.89,144.87,94.30685294]
[1750807208766,6.02,144.89,144.88,5.60685294]
[1750807209472,6.02,144.89,144.88,94.30685294]
[1750807210671,0.69000676,144.93,144.88,101.89911327]
[1750807210974,0.69000676,144.93,144.91,5.60685294]
[1750807211169,6.68996057,144.94,144.91,94.30685294]
[1750807211477,5.84796235,144.93,144.91,94.30685294]
[1750807211677,0.69003523,144.93,144.91,94.30685294]
[1750807212282,5.15704197,144.93,144.91,94.30685294]
[1750807212891,6.6899617,144.94,144.91,94.30685294]
[1750807214272,6.6899617,144.94,144.91,88.7]
[1750807215076,6.6899617,144.94,144.91,94.30685294]
[1750807215275,6.0,144.94,144.93,5.60685294]
[1750807215695,6.0,144.94,144.92,5.60685294]
[1750807216080,6.0,144.94,144.93,5.60685294]
[1750807217297,6.0,144.94,144.92,5.60685294]
[1750807220980,6.0,144.94,144.92,94.30685294]
[1750807221602,6.0,144.94,144.93,5.60685294]
[1750807221805,5.84229835,144.98,144.93,12.50673564]
[1750807222003,5.84229835,144.98,144.96,5.60685294]
[1750807222306,5.84229835,144.98,144.96,88.7]
[1750807222483,11.44915129,144.98,144.96,88.7]
[1750807222686,5.84229835,144.98,144.96,88.7]
[1750807222899,11.44915129,144.98,144.96,88.7]
[1750807224396,0.68976854,144.98,144.96,88.7]
[1750807224982,5.84229835,144.98,144.96,88.7]
[1750807225482,0.68976854,144.98,144.96,88.7]
[1750807228700,6.68971669,144.99,144.96,94.30685294]
[1750807231614,6.68971669,144.99,144.97,5.60685294]
[1750807232101,6.0,144.99,144.97,5.60685294]
[1750807233406,6.68970599,144.99,144.96,94.30685294]
[1750807234395,12.29655893,144.99,144.96,88.7]
[1750807235298,0.68979788,144.97,144.96,88.7]
[1750807235815,0.68979788,144.97,144.94,5.60685294]
[1750807236695,0.68975031,144.98,144.94,5.60685294]
[1750807237697,0.68975031,144.98,144.95,5.60685294]
[1750807238996,6.68972498,144.99,144.96,5.60685294]
[1750807241921,6.68972498,144.99,144.96,94.30685294]
[1750807247629,6.0,144.99,144.96,94.30685294]
[1750807247926,6.0,144.99,144.97,5.60685294]
[1750807248826,6.68970924,144.99,144.97,5.60685294]
[1750807249016,6.68970924,144.99,144.96,94.30685294]
[1750807251427,6.68970924,144.99,144.96,88.7]
[1750807251428,19.17334883,144.99,144.96,88.7]
[1750807251629,14.02081902,144.99,144.96,88.7]
[1750807252130,19.17334883,144.99,144.96,88.7]